[Event "Titled Tuesday Blitz May 10 Early 2022"]
[White "Dardha, Daniel"]
[Black "Donchenko, Alexander"]
[WhiteFideId "240990"]
[BlackFideId "24603295"]
[WhiteElo "2482"]
[BlackElo "2572"]
[Result "1-0"]
[Round "05"]
[TimeControl "180+1"]
[Date "2022.05.10"]
[WhiteClock "0:00:04"]
[BlackClock "0:00:02"]

1. e4 {[%clk 0:03:00]}  c6 {[%clk 0:02:59]} 2. d3 {[%clk 0:03:00]}  d5 {[%clk 0:03:00]} 3. Nf3 {[%clk 0:03:00]}  dxe4 {[%clk 0:03:00]} 4. dxe4 {[%clk 0:03:01]}  Qxd1+ {[%clk 0:03:00]} 5. Kxd1 {[%clk 0:03:02]}  Nf6 {[%clk 0:03:01]} 6. Nfd2 {[%clk 0:03:03]}  h5 {[%clk 0:03:00]} 7. a4 {[%clk 0:03:02]}  h4 {[%clk 0:03:01]} 8. h3 {[%clk 0:03:02]}  g5 {[%clk 0:02:59]} 9. Nc3 {[%clk 0:03:02]}  Nbd7 {[%clk 0:02:56]} 10. Nf3 {[%clk 0:03:01]}  g4 {[%clk 0:02:51]} 11. hxg4 {[%clk 0:03:02]}  Nxg4 {[%clk 0:02:52]} 12. Ke1 {[%clk 0:03:02]}  Bg7 {[%clk 0:02:39]} 13. Rxh4 {[%clk 0:02:57]}  Rxh4 {[%clk 0:02:35]} 14. Nxh4 {[%clk 0:02:58]}  Nc5 {[%clk 0:02:27]} 15. f3 {[%clk 0:02:30]}  Bf6 {[%clk 0:02:26]} 16. g3 {[%clk 0:02:26]}  Ne5 {[%clk 0:02:22]} 17. Be2 {[%clk 0:02:24]}  Bh3 {[%clk 0:02:13]} 18. Be3 {[%clk 0:02:23]}  Ned7 {[%clk 0:01:53]} 19. a5 {[%clk 0:02:17]}  O-O-O {[%clk 0:01:51]} 20. Kf2 {[%clk 0:02:13]}  Rg8 {[%clk 0:01:47]} 21. Nf5 {[%clk 0:02:03]}  Bxf5 {[%clk 0:01:32]} 22. exf5 {[%clk 0:02:04]}  Be5 {[%clk 0:01:18]} 23. Rg1 {[%clk 0:01:54]}  e6 {[%clk 0:01:16]} 24. fxe6 {[%clk 0:01:52]}  Nxe6 {[%clk 0:01:16]} 25. f4 {[%clk 0:01:52]}  Bd4 {[%clk 0:01:15]} 26. Bd3 {[%clk 0:01:34]}  Nf6 {[%clk 0:01:09]} 27. Bf5 {[%clk 0:01:32]}  Bxe3+ {[%clk 0:01:06]} 28. Kxe3 {[%clk 0:01:33]}  Re8 {[%clk 0:01:06]} 29. Kf3 {[%clk 0:01:32]}  Kc7 {[%clk 0:01:05]} 30. Bxe6 {[%clk 0:01:32]}  Rxe6 {[%clk 0:01:05]} 31. g4 {[%clk 0:01:28]}  Rd6 {[%clk 0:01:04]} 32. g5 {[%clk 0:01:27]}  Nd7 {[%clk 0:01:04]} 33. Rd1 {[%clk 0:01:24]}  f5 {[%clk 0:00:55]} 34. Rxd6 {[%clk 0:01:20]}  Kxd6 {[%clk 0:00:56]} 35. Ne2 {[%clk 0:01:21]}  c5 {[%clk 0:00:55]} 36. Ng3 {[%clk 0:01:13]}  Ke6 {[%clk 0:00:55]} 37. Ke3 {[%clk 0:01:08]}  Nf8 {[%clk 0:00:51]} 38. Kd3 {[%clk 0:01:07]}  Ng6 {[%clk 0:00:51]} 39. Nh5 {[%clk 0:01:08]}  Kd5 {[%clk 0:00:49]} 40. b3 {[%clk 0:01:03]}  b5 {[%clk 0:00:45]} 41. c4+ {[%clk 0:00:58]}  bxc4+ {[%clk 0:00:45]} 42. bxc4+ {[%clk 0:00:59]}  Kd6 {[%clk 0:00:44]} 43. Ke3 {[%clk 0:00:52]}  a6 {[%clk 0:00:37]} 44. Ng7 {[%clk 0:00:50]}  Ne7 {[%clk 0:00:37]} 45. Kf3 {[%clk 0:00:49]}  Kc7 {[%clk 0:00:33]} 46. Kg3 {[%clk 0:00:42]}  Kd7 {[%clk 0:00:34]} 47. Kh4 {[%clk 0:00:30]}  Ng6+ {[%clk 0:00:34]} 48. Kh5 {[%clk 0:00:31]}  Nxf4+ {[%clk 0:00:34]} 49. Kh6 {[%clk 0:00:32]}  Kd6 {[%clk 0:00:25]} 50. Nxf5+ {[%clk 0:00:26]}  Ke5 {[%clk 0:00:25]} 51. Ng3 {[%clk 0:00:20]}  Ne6 {[%clk 0:00:17]} 52. g6 {[%clk 0:00:19]}  Kd4 {[%clk 0:00:17]} 53. Ne2+ {[%clk 0:00:16]}  Ke3 {[%clk 0:00:15]} 54. Nc3 {[%clk 0:00:15]}  Kd4 {[%clk 0:00:14]} 55. Nd5 {[%clk 0:00:16]}  Kxc4 {[%clk 0:00:07]} 56. Nc7 {[%clk 0:00:16]}  Nd4 {[%clk 0:00:05]} 57. Kh5 {[%clk 0:00:11]}  Nf5 {[%clk 0:00:04]} 58. Ne6 {[%clk 0:00:10]}  Kd5 {[%clk 0:00:04]} 59. Nc7+ {[%clk 0:00:10]}  Kc6 {[%clk 0:00:04]} 60. Nxa6 {[%clk 0:00:07]}  Kb5 {[%clk 0:00:04]} 61. Nc7+ {[%clk 0:00:07]}  Kxa5 {[%clk 0:00:05]} 62. Kg5 {[%clk 0:00:07]}  Ne7 {[%clk 0:00:04]} 63. g7 {[%clk 0:00:08]}  c4 {[%clk 0:00:05]} 64. Nd5 {[%clk 0:00:06]}  Nxd5 {[%clk 0:00:02]} 65. g8=Q {[%clk 0:00:06]}  Nb6 {[%clk 0:00:02]} 66. Kf4 {[%clk 0:00:05]}  Kb4 {[%clk 0:00:03]} 67. Qb8 {[%clk 0:00:04]}  Kc5 {[%clk 0:00:03]} 68. Ke3 {[%clk 0:00:05]}  Nd5+ {[%clk 0:00:03]} 69. Kd2 {[%clk 0:00:05]}  Kd4 {[%clk 0:00:04]} 70. Qg3 {[%clk 0:00:05]}  c3+ {[%clk 0:00:05]} 71. Kc1 {[%clk 0:00:05]}  Ne3 {[%clk 0:00:05]} 72. Qg7+ {[%clk 0:00:05]}  Kd3 {[%clk 0:00:05]} 73. Qg6+ {[%clk 0:00:06]}  Kd4 {[%clk 0:00:06]} 74. Qb1 {[%clk 0:00:05]}  Nc4 {[%clk 0:00:05]} 75. Qb4 {[%clk 0:00:04]}  Kd3 {[%clk 0:00:05]} 76. Qb5 {[%clk 0:00:04]}  Kd4 {[%clk 0:00:06]} 77. Qd7+ {[%clk 0:00:04]}  Ke4 {[%clk 0:00:06]} 78. Kc2 {[%clk 0:00:04]}  Ne3+ {[%clk 0:00:06]} 79. Kxc3 {[%clk 0:00:04]}  Nd5+ {[%clk 0:00:07]} 80. Kd2 {[%clk 0:00:04]}  Nf4 {[%clk 0:00:07]} 81. Qc6+ {[%clk 0:00:04]}  Kd4 {[%clk 0:00:07]} 82. Qf3 {[%clk 0:00:04]}  Nd5 {[%clk 0:00:07]} 83. Qg4+ {[%clk 0:00:04]}  Ke5 {[%clk 0:00:07]} 84. Kd3 {[%clk 0:00:05]}  Nf4+ {[%clk 0:00:08]} 85. Ke3 {[%clk 0:00:05]}  Nd5+ {[%clk 0:00:08]} 86. Kf3 {[%clk 0:00:06]}  Nf6 {[%clk 0:00:09]} 87. Qg5+ {[%clk 0:00:06]}  Ke6 {[%clk 0:00:09]} 88. Kf4 {[%clk 0:00:07]}  Nd5+ {[%clk 0:00:10]} 89. Ke4 {[%clk 0:00:07]}  Nf6+ {[%clk 0:00:05]} 90. Kd4 {[%clk 0:00:07]}  Nd7 {[%clk 0:00:02]} 91. Qg4+ {[%clk 0:00:05]}  Kd6 {[%clk 0:00:02]} 92. Qg6+ {[%clk 0:00:06]}  Ke7 {[%clk 0:00:02]} 93. Kd5 {[%clk 0:00:06]}  Nf6+ {[%clk 0:00:02]} 94. Ke5 {[%clk 0:00:06]}  Nd7+ {[%clk 0:00:03]} 95. Kf5 {[%clk 0:00:07]}  Nc5 {[%clk 0:00:03]} 96. Qc6 {[%clk 0:00:03]}  Nd7 {[%clk 0:00:03]} 97. Qc7 {[%clk 0:00:04]}  Ke8 {[%clk 0:00:03]} 98. Ke6 {[%clk 0:00:04]}  Nf8+ {[%clk 0:00:04]} 99. Kd6 {[%clk 0:00:05]}  Ng6 {[%clk 0:00:04]} 100. Qg7 {[%clk 0:00:04]}  Kd8 {[%clk 0:00:02]} 101. Qd7# {[%clk 0:00:04]} 1-0


[Site "https://www.chess.com"]

[Event "Titled Tuesday Blitz May 10 Early 2022"]
[White "Demin, Vladimir"]
[Black "Kazakouski, Valery"]
[WhiteFideId "4167457"]
[BlackFideId "13507443"]
[WhiteElo "2457"]
[BlackElo "2524"]
[Result "0-1"]
[Round "05"]
[TimeControl "180+1"]
[Date "2022.05.11"]
[WhiteClock "0:00:01"]
[BlackClock "0:01:17"]

1. d4 {[%clk 0:03:00]}  Nf6 {[%clk 0:02:37]} 2. g4 {[%clk 0:02:59]}  d5 {[%clk 0:02:36]} 3. g5 {[%clk 0:02:58]}  Ne4 {[%clk 0:02:36]} 4. f3 {[%clk 0:02:58]}  Nd6 {[%clk 0:02:36]} 5. Nc3 {[%clk 0:02:57]}  Nf5 {[%clk 0:02:21]} 6. Bh3 {[%clk 0:02:31]}  c5 {[%clk 0:02:17]} 7. dxc5 {[%clk 0:02:18]}  d4 {[%clk 0:02:18]} 8. e4 {[%clk 0:02:02]}  dxe3 {[%clk 0:01:57]} 9. Qxd8+ {[%clk 0:01:55]}  Kxd8 {[%clk 0:01:58]} 10. Nd5 {[%clk 0:01:10]}  Na6 {[%clk 0:01:55]} 11. Bxf5 {[%clk 0:01:07]}  Bxf5 {[%clk 0:01:54]} 12. Bxe3 {[%clk 0:00:56]}  e6 {[%clk 0:01:54]} 13. Nc3 {[%clk 0:00:39]}  Bxc2 {[%clk 0:01:49]} 14. Rc1 {[%clk 0:00:34]}  Bf5 {[%clk 0:01:48]} 15. Nb5 {[%clk 0:00:12]}  Nb4 {[%clk 0:01:47]} 16. Rd1+ {[%clk 0:00:04]}  Kc8 {[%clk 0:01:47]} 17. Nd6+ {[%clk 0:00:04]}  Bxd6 {[%clk 0:01:47]} 18. cxd6 {[%clk 0:00:04]}  Kd7 {[%clk 0:01:44]} 19. Ne2 {[%clk 0:00:04]}  Rac8 {[%clk 0:01:37]} 20. Nc3 {[%clk 0:00:04]}  Nc2+ {[%clk 0:01:37]} 21. Kf2 {[%clk 0:00:04]}  Nxe3 {[%clk 0:01:38]} 22. Kxe3 {[%clk 0:00:05]}  Rc6 {[%clk 0:01:39]} 23. Rd2 {[%clk 0:00:02]}  Rxd6 {[%clk 0:01:31]} 24. Rxd6+ {[%clk 0:00:03]}  Kxd6 {[%clk 0:01:32]} 25. Rd1+ {[%clk 0:00:04]}  Kc6 {[%clk 0:01:32]} 26. Kf4 {[%clk 0:00:04]}  h6 {[%clk 0:01:30]} 27. h4 {[%clk 0:00:02]}  hxg5+ {[%clk 0:01:31]} 28. hxg5 {[%clk 0:00:03]}  Rh2 {[%clk 0:01:30]} 29. b4 {[%clk 0:00:03]}  Rc2 {[%clk 0:01:27]} 30. Ne4 {[%clk 0:00:03]}  Rc4 {[%clk 0:01:25]} 31. b5+ {[%clk 0:00:03]}  Kc7 {[%clk 0:01:22]} 32. Ke5 {[%clk 0:00:02]}  Bxe4 {[%clk 0:01:22]} 33. fxe4 {[%clk 0:00:03]}  Rc5+ {[%clk 0:01:22]} 34. Kf4 {[%clk 0:00:03]}  Rxb5 {[%clk 0:01:23]} 35. Rh1 {[%clk 0:00:03]}  f6 {[%clk 0:01:18]} 36. gxf6 {[%clk 0:00:02]}  gxf6 {[%clk 0:01:19]} 37. Rh7+ {[%clk 0:00:02]}  Kd6 {[%clk 0:01:20]} 38. Rf7 {[%clk 0:00:02]}  Rb2 {[%clk 0:01:20]} 39. Rf8 {[%clk 0:00:01]}  Ke7 {[%clk 0:01:17]} 0-1


[Site "https://www.chess.com"]

[Event "Titled Tuesday Blitz May 10 Early 2022"]
[White "Wagner, Dinara"]
[Black "Panesar Vedant"]
[WhiteFideId "24157570"]
[BlackFideId "35033018"]
[WhiteElo "2216"]
[BlackElo "1975"]
[Result "0-1"]
[Round "05"]
[TimeControl "180+1"]
[Date "2022.05.11"]
[WhiteClock "0:00:58"]
[BlackClock "0:00:59"]

1. d4 {[%clk 0:02:58]}  Nf6 {[%clk 0:02:56]} 2. c4 {[%clk 0:02:58]}  e6 {[%clk 0:02:56]} 3. Nf3 {[%clk 0:02:57]}  d5 {[%clk 0:02:56]} 4. g3 {[%clk 0:02:58]}  Be7 {[%clk 0:02:57]} 5. Bg2 {[%clk 0:02:58]}  O-O {[%clk 0:02:58]} 6. O-O {[%clk 0:02:58]}  dxc4 {[%clk 0:02:58]} 7. Qc2 {[%clk 0:02:58]}  a6 {[%clk 0:02:59]} 8. a4 {[%clk 0:02:58]}  Bd7 {[%clk 0:02:59]} 9. Qxc4 {[%clk 0:02:57]}  Bc6 {[%clk 0:03:00]} 10. Bg5 {[%clk 0:02:56]}  Bd5 {[%clk 0:02:52]} 11. Qc2 {[%clk 0:02:55]}  Be4 {[%clk 0:02:52]} 12. Qc1 {[%clk 0:02:56]}  h6 {[%clk 0:02:48]} 13. Bxf6 {[%clk 0:02:53]}  Bxf6 {[%clk 0:02:48]} 14. Nc3 {[%clk 0:02:52]}  Bxf3 {[%clk 0:02:43]} 15. Bxf3 {[%clk 0:02:53]}  c6 {[%clk 0:02:38]} 16. e3 {[%clk 0:02:53]}  a5 {[%clk 0:02:38]} 17. h4 {[%clk 0:02:52]}  Na6 {[%clk 0:02:38]} 18. Qc2 {[%clk 0:02:30]}  Nb4 {[%clk 0:02:37]} 19. Qe2 {[%clk 0:02:26]}  Qe7 {[%clk 0:02:36]} 20. h5 {[%clk 0:02:25]}  Rad8 {[%clk 0:02:36]} 21. Rfd1 {[%clk 0:02:25]}  Qc7 {[%clk 0:02:28]} 22. Ne4 {[%clk 0:02:20]}  Be7 {[%clk 0:02:27]} 23. Rac1 {[%clk 0:02:21]}  Qb6 {[%clk 0:02:27]} 24. Nc5 {[%clk 0:02:11]}  Bxc5 {[%clk 0:02:26]} 25. Rxc5 {[%clk 0:02:10]}  Na6 {[%clk 0:02:26]} 26. Rcc1 {[%clk 0:02:06]}  Rd7 {[%clk 0:02:24]} 27. Be4 {[%clk 0:02:06]}  Nb4 {[%clk 0:02:14]} 28. Bb1 {[%clk 0:02:05]}  Rfd8 {[%clk 0:02:14]} 29. Qf3 {[%clk 0:02:03]}  Kf8 {[%clk 0:02:09]} 30. Kg2 {[%clk 0:01:34]}  Nd5 {[%clk 0:02:07]} 31. Qe4 {[%clk 0:01:30]}  Qxb2 {[%clk 0:01:51]} 32. Bd3 {[%clk 0:01:16]}  Nc3 {[%clk 0:01:25]} 33. Qh7 {[%clk 0:01:11]}  Nxd1 {[%clk 0:01:19]} 34. Rxd1 {[%clk 0:01:11]}  Qb3 {[%clk 0:01:17]} 35. Rd2 {[%clk 0:01:09]}  Qd5+ {[%clk 0:01:09]} 36. Be4 {[%clk 0:00:59]}  Qxh5 {[%clk 0:01:04]} 37. Qxg7+ {[%clk 0:00:58]}  Kxg7 {[%clk 0:00:59]} 0-1


[Site "https://www.chess.com"]

[Event "Titled Tuesday Blitz May 10 Early 2022"]
[White "FGHSMN"]
[Black "Oparin, Grigoriy"]
[BlackFideId "24125890"]
[WhiteElo "2762"]
[BlackElo "2665"]
[Result "0-1"]
[Round "05"]
[TimeControl "180+1"]
[Date "2022.05.10"]
[WhiteClock "0:00:03"]
[BlackClock "0:00:11"]

1. c4 {[%clk 0:02:58]}  e5 {[%clk 0:02:59]} 2. Nc3 {[%clk 0:02:57]}  Nf6 {[%clk 0:02:58]} 3. Nf3 {[%clk 0:02:57]}  Nc6 {[%clk 0:02:59]} 4. e3 {[%clk 0:02:56]}  Bb4 {[%clk 0:02:59]} 5. Qc2 {[%clk 0:02:53]}  Bxc3 {[%clk 0:02:57]} 6. Qxc3 {[%clk 0:02:52]}  Qe7 {[%clk 0:02:58]} 7. d3 {[%clk 0:02:30]}  d5 {[%clk 0:02:52]} 8. cxd5 {[%clk 0:02:15]}  Nxd5 {[%clk 0:02:53]} 9. Qb3 {[%clk 0:02:09]}  Ndb4 {[%clk 0:02:40]} 10. a3 {[%clk 0:02:05]}  Be6 {[%clk 0:02:38]} 11. Qa4 {[%clk 0:02:04]}  Nd5 {[%clk 0:01:56]} 12. Nxe5 {[%clk 0:02:02]}  O-O {[%clk 0:01:57]} 13. Nxc6 {[%clk 0:02:01]}  bxc6 {[%clk 0:01:58]} 14. Qxc6 {[%clk 0:01:58]}  Rab8 {[%clk 0:01:57]} 15. Be2 {[%clk 0:01:56]}  Nf6 {[%clk 0:01:53]} 16. e4 {[%clk 0:01:47]}  Bg4 {[%clk 0:01:41]} 17. f3 {[%clk 0:01:46]}  Bd7 {[%clk 0:01:40]} 18. Qc2 {[%clk 0:01:24]}  c5 {[%clk 0:01:06]} 19. Be3 {[%clk 0:01:20]}  Rfc8 {[%clk 0:01:07]} 20. O-O {[%clk 0:01:16]}  Nd5 {[%clk 0:01:05]} 21. Bd2 {[%clk 0:01:07]}  Nc7 {[%clk 0:01:03]} 22. Rac1 {[%clk 0:01:05]}  Ne6 {[%clk 0:01:03]} 23. Be3 {[%clk 0:01:02]}  Qd6 {[%clk 0:01:03]} 24. Qc3 {[%clk 0:00:51]}  h6 {[%clk 0:00:54]} 25. f4 {[%clk 0:00:51]}  Ba4 {[%clk 0:00:40]} 26. f5 {[%clk 0:00:40]}  Nd4 {[%clk 0:00:40]} 27. Bxd4 {[%clk 0:00:40]}  cxd4 {[%clk 0:00:41]} 28. Qa5 {[%clk 0:00:25]}  Bc2 {[%clk 0:00:36]} 29. b4 {[%clk 0:00:20]}  Rc3 {[%clk 0:00:31]} 30. e5 {[%clk 0:00:20]}  Qd7 {[%clk 0:00:23]} 31. f6 {[%clk 0:00:20]}  Rb5 {[%clk 0:00:16]} 32. e6 {[%clk 0:00:14]}  Rxa5 {[%clk 0:00:07]} 33. exd7 {[%clk 0:00:14]}  Rd5 {[%clk 0:00:08]} 34. Bd1 {[%clk 0:00:12]}  Bxd3 {[%clk 0:00:08]} 35. Rxc3 {[%clk 0:00:08]}  dxc3 {[%clk 0:00:09]} 36. Re1 {[%clk 0:00:07]}  Rxd7 {[%clk 0:00:08]} 37. Ba4 {[%clk 0:00:07]}  Rd8 {[%clk 0:00:07]} 38. Rc1 {[%clk 0:00:07]}  Rc8 {[%clk 0:00:07]} 39. Kf2 {[%clk 0:00:08]}  gxf6 {[%clk 0:00:07]} 40. Ke3 {[%clk 0:00:08]}  Bf5 {[%clk 0:00:06]} 41. Kd4 {[%clk 0:00:07]}  c2 {[%clk 0:00:07]} 42. g4 {[%clk 0:00:05]}  Bg6 {[%clk 0:00:05]} 43. h4 {[%clk 0:00:05]}  f5 {[%clk 0:00:05]} 44. Rxc2 {[%clk 0:00:04]}  Rd8+ {[%clk 0:00:03]} 45. Ke3 {[%clk 0:00:04]}  fxg4 {[%clk 0:00:04]} 46. Rc7 {[%clk 0:00:04]}  Rd3+ {[%clk 0:00:04]} 47. Kf4 {[%clk 0:00:04]}  Rxa3 {[%clk 0:00:04]} 48. Rxa7 {[%clk 0:00:05]}  g3 {[%clk 0:00:05]} 49. Ra8+ {[%clk 0:00:05]}  Kg7 {[%clk 0:00:05]} 50. Bc6 {[%clk 0:00:05]}  Rc3 {[%clk 0:00:03]} 51. Bf3 {[%clk 0:00:06]}  Rc4+ {[%clk 0:00:02]} 52. Kxg3 {[%clk 0:00:06]}  Rxb4 {[%clk 0:00:02]} 53. Ra5 {[%clk 0:00:05]}  Rb6 {[%clk 0:00:02]} 54. h5 {[%clk 0:00:06]}  Bh7 {[%clk 0:00:03]} 55. Re5 {[%clk 0:00:06]}  Rf6 {[%clk 0:00:04]} 56. Re3 {[%clk 0:00:05]}  Re6 {[%clk 0:00:04]} 57. Rxe6 {[%clk 0:00:05]}  fxe6 {[%clk 0:00:05]} 58. Kf4 {[%clk 0:00:05]}  Kf6 {[%clk 0:00:06]} 59. Kg3 {[%clk 0:00:04]}  e5 {[%clk 0:00:07]} 60. Bc6 {[%clk 0:00:05]}  Bf5 {[%clk 0:00:07]} 61. Kh4 {[%clk 0:00:04]}  Be6 {[%clk 0:00:07]} 62. Be4 {[%clk 0:00:04]}  Bd7 {[%clk 0:00:08]} 63. Bd5 {[%clk 0:00:03]}  Kf5 {[%clk 0:00:08]} 64. Bg8 {[%clk 0:00:02]}  Kf4 {[%clk 0:00:08]} 65. Bh7 {[%clk 0:00:01]}  Bg4 {[%clk 0:00:08]} 66. Be4 {[%clk 0:00:01]}  Be2 {[%clk 0:00:08]} 67. Bd5 {[%clk 0:00:01]}  Bf3 {[%clk 0:00:08]} 68. Be6 {[%clk 0:00:01]}  e4 {[%clk 0:00:08]} 69. Bf5 {[%clk 0:00:01]}  e3 {[%clk 0:00:08]} 70. Bd3 {[%clk 0:00:02]}  e2 {[%clk 0:00:09]} 71. Bxe2 {[%clk 0:00:02]}  Bxe2 {[%clk 0:00:10]} 72. Kh3 {[%clk 0:00:03]}  Bxh5 {[%clk 0:00:10]} 73. Kh2 {[%clk 0:00:03]}  Bd1 {[%clk 0:00:11]} 0-1


[Site "https://www.chess.com"]

[Event "Titled Tuesday Blitz May 10 Early 2022"]
[White "Fathy, Elameir"]
[Black "Bommini, Mounika Akshaya"]
[WhiteFideId "10600396"]
[BlackFideId "25019872"]
[WhiteElo "2311"]
[BlackElo "1671"]
[Result "0-1"]
[Round "05"]
[TimeControl "180+1"]
[Date "2022.05.11"]
[WhiteClock "0:00:12"]
[BlackClock "0:00:26"]

1. d4 {[%clk 0:02:50]}  Nf6 {[%clk 0:02:59]} 2. c4 {[%clk 0:02:45]}  c6 {[%clk 0:02:55]} 3. Nf3 {[%clk 0:02:45]}  d5 {[%clk 0:02:55]} 4. g3 {[%clk 0:02:42]}  Bg4 {[%clk 0:02:54]} 5. Ne5 {[%clk 0:02:41]}  Bf5 {[%clk 0:02:48]} 6. Bg2 {[%clk 0:02:39]}  e6 {[%clk 0:02:48]} 7. Nc3 {[%clk 0:02:38]}  Bd6 {[%clk 0:02:42]} 8. O-O {[%clk 0:02:32]}  O-O {[%clk 0:02:40]} 9. Bf4 {[%clk 0:02:19]}  h6 {[%clk 0:02:35]} 10. Re1 {[%clk 0:01:40]}  Qc7 {[%clk 0:02:12]} 11. c5 {[%clk 0:01:39]}  Bxe5 {[%clk 0:02:07]} 12. Bxe5 {[%clk 0:01:40]}  Qd8 {[%clk 0:02:05]} 13. b4 {[%clk 0:01:35]}  Nbd7 {[%clk 0:02:05]} 14. Bd6 {[%clk 0:01:35]}  Re8 {[%clk 0:02:04]} 15. b5 {[%clk 0:01:36]}  e5 {[%clk 0:02:01]} 16. e3 {[%clk 0:01:35]}  e4 {[%clk 0:01:46]} 17. Bf1 {[%clk 0:01:35]}  Nf8 {[%clk 0:01:44]} 18. bxc6 {[%clk 0:01:33]}  bxc6 {[%clk 0:01:44]} 19. Qa4 {[%clk 0:01:34]}  Qd7 {[%clk 0:01:40]} 20. Rab1 {[%clk 0:01:30]}  Ng6 {[%clk 0:01:34]} 21. Ba6 {[%clk 0:01:28]}  Bh3 {[%clk 0:01:33]} 22. Bf1 {[%clk 0:01:03]}  Bxf1 {[%clk 0:01:12]} 23. Rxf1 {[%clk 0:00:49]}  Qh3 {[%clk 0:01:10]} 24. f3 {[%clk 0:00:48]}  exf3 {[%clk 0:01:01]} 25. Rxf3 {[%clk 0:00:49]}  Ng4 {[%clk 0:00:53]} 26. Qc2 {[%clk 0:00:27]}  Nxe3 {[%clk 0:00:42]} 27. Qf2 {[%clk 0:00:26]}  Ng4 {[%clk 0:00:40]} 28. Qg2 {[%clk 0:00:20]}  Qh5 {[%clk 0:00:27]} 29. Rb7 {[%clk 0:00:13]}  Re1+ {[%clk 0:00:26]} 30. Rf1 {[%clk 0:00:11]}  Rxf1+ {[%clk 0:00:26]} 31. Kxf1 {[%clk 0:00:12]}  Ne3+ {[%clk 0:00:26]} 0-1


[Site "https://www.chess.com"]

[Event "Titled Tuesday Blitz May 10 Early 2022"]
[White "Fedoseev, Vladimir"]
[Black "Rastbod, Ali"]
[WhiteFideId "24130737"]
[BlackFideId "12567477"]
[WhiteElo "2726"]
[BlackElo "2147"]
[Result "1-0"]
[Round "05"]
[TimeControl "180+1"]
[Date "2022.05.11"]
[WhiteClock "0:01:30"]
[BlackClock "0:01:31"]

1. g3 {[%clk 0:02:53]}  d5 {[%clk 0:02:58]} 2. Bg2 {[%clk 0:02:52]}  e5 {[%clk 0:02:58]} 3. c4 {[%clk 0:02:49]}  d4 {[%clk 0:02:58]} 4. b4 {[%clk 0:02:47]}  Nf6 {[%clk 0:02:51]} 5. Bb2 {[%clk 0:02:45]}  e4 {[%clk 0:02:49]} 6. b5 {[%clk 0:02:40]}  c5 {[%clk 0:02:46]} 7. d3 {[%clk 0:02:28]}  Bf5 {[%clk 0:02:31]} 8. Nd2 {[%clk 0:02:22]}  Qa5 {[%clk 0:02:16]} 9. Kf1 {[%clk 0:02:09]}  Bd6 {[%clk 0:02:09]} 10. dxe4 {[%clk 0:02:04]}  Be6 {[%clk 0:02:07]} 11. e5 {[%clk 0:02:03]}  Bxe5 {[%clk 0:02:03]} 12. Bxb7 {[%clk 0:02:03]}  O-O {[%clk 0:01:56]} 13. Bxa8 {[%clk 0:02:02]}  Nbd7 {[%clk 0:01:57]} 14. Bc6 {[%clk 0:01:54]}  Nb6 {[%clk 0:01:55]} 15. Ngf3 {[%clk 0:01:55]}  Bd6 {[%clk 0:01:43]} 16. Rc1 {[%clk 0:01:41]}  Qxa2 {[%clk 0:01:37]} 17. Qc2 {[%clk 0:01:34]}  Nxc4 {[%clk 0:01:31]} 18. Nxc4 {[%clk 0:01:31]}  Bxc4 {[%clk 0:01:32]} 19. Qxc4 {[%clk 0:01:30]}  Qxb2 {[%clk 0:01:31]} 20. Kg2 {[%clk 0:01:30]} 1-0


[Site "https://www.chess.com"]

[Event "Titled Tuesday Blitz May 10 Early 2022"]
[White "Fier, Alexandr"]
[Black "Alekseenko, Kirill"]
[WhiteFideId "2107139"]
[BlackFideId "4135539"]
[WhiteElo "2571"]
[BlackElo "2682"]
[Result "1-0"]
[Round "05"]
[TimeControl "180+1"]
[Date "2022.05.10"]
[WhiteClock "0:01:58"]
[BlackClock "0:00:41"]

1. d4 {[%clk 0:03:00]}  d5 {[%clk 0:03:00]} 2. c4 {[%clk 0:03:01]}  dxc4 {[%clk 0:03:00]} 3. e4 {[%clk 0:03:00]}  Nf6 {[%clk 0:03:00]} 4. e5 {[%clk 0:02:59]}  Nd5 {[%clk 0:03:01]} 5. Bxc4 {[%clk 0:03:00]}  Nb6 {[%clk 0:03:02]} 6. Bb3 {[%clk 0:02:56]}  Nc6 {[%clk 0:03:02]} 7. Ne2 {[%clk 0:02:56]}  Bf5 {[%clk 0:02:59]} 8. Nbc3 {[%clk 0:02:56]}  e6 {[%clk 0:03:00]} 9. Be3 {[%clk 0:02:57]}  Qd7 {[%clk 0:03:00]} 10. O-O {[%clk 0:02:57]}  O-O-O {[%clk 0:03:00]} 11. Qc1 {[%clk 0:02:57]}  Nb4 {[%clk 0:02:53]} 12. Rd1 {[%clk 0:02:49]}  Kb8 {[%clk 0:02:47]} 13. a4 {[%clk 0:02:47]}  N6d5 {[%clk 0:02:21]} 14. Nxd5 {[%clk 0:02:45]}  Nxd5 {[%clk 0:02:21]} 15. a5 {[%clk 0:02:45]}  a6 {[%clk 0:02:20]} 16. Nc3 {[%clk 0:02:45]}  Nxe3 {[%clk 0:01:47]} 17. Qxe3 {[%clk 0:02:46]}  c6 {[%clk 0:01:43]} 18. Na4 {[%clk 0:02:38]}  Bb4 {[%clk 0:01:40]} 19. Nc5 {[%clk 0:02:35]}  Qe7 {[%clk 0:01:38]} 20. h3 {[%clk 0:02:32]}  g5 {[%clk 0:01:33]} 21. Ra4 {[%clk 0:02:22]}  Bxc5 {[%clk 0:01:32]} 22. dxc5 {[%clk 0:02:23]}  Rxd1+ {[%clk 0:01:32]} 23. Bxd1 {[%clk 0:02:24]}  Rd8 {[%clk 0:01:33]} 24. Rd4 {[%clk 0:02:24]}  Rd7 {[%clk 0:01:25]} 25. Rd6 {[%clk 0:02:22]}  Qd8 {[%clk 0:01:12]} 26. b4 {[%clk 0:02:18]}  Rxd6 {[%clk 0:01:04]} 27. cxd6 {[%clk 0:02:18]}  f6 {[%clk 0:01:02]} 28. Bb3 {[%clk 0:02:10]}  Qh8 {[%clk 0:00:56]} 29. g4 {[%clk 0:02:06]}  Bg6 {[%clk 0:00:54]} 30. Bxe6 {[%clk 0:02:01]}  fxe5 {[%clk 0:00:53]} 31. d7 {[%clk 0:01:58]}  Qd8 {[%clk 0:00:41]} 32. Qb6 {[%clk 0:01:58]} 1-0


[Site "https://www.chess.com"]

[Event "Titled Tuesday Blitz May 10 Early 2022"]
[White "Garcia de Dios, Jose Antonio"]
[Black "Friedel, Tom"]
[WhiteFideId "5128919"]
[BlackFideId "2002108"]
[WhiteElo "2080"]
[BlackElo "2320"]
[Result "0-1"]
[Round "05"]
[TimeControl "180+1"]
[Date "2022.05.11"]
[WhiteClock "0:00:02"]
[BlackClock "0:00:59"]

1. d4 {[%clk 0:01:09]}  d5 {[%clk 0:02:58]} 2. c4 {[%clk 0:01:10]}  e6 {[%clk 0:02:57]} 3. Nc3 {[%clk 0:01:09]}  Nf6 {[%clk 0:02:58]} 4. Nf3 {[%clk 0:01:09]}  Be7 {[%clk 0:02:58]} 5. g3 {[%clk 0:01:08]}  Nbd7 {[%clk 0:02:57]} 6. Bg2 {[%clk 0:01:08]}  dxc4 {[%clk 0:02:57]} 7. a4 {[%clk 0:01:07]}  a5 {[%clk 0:02:54]} 8. O-O {[%clk 0:01:06]}  O-O {[%clk 0:02:54]} 9. e4 {[%clk 0:01:01]}  Nb6 {[%clk 0:02:51]} 10. Qe2 {[%clk 0:00:52]}  Bd7 {[%clk 0:02:46]} 11. Rd1 {[%clk 0:00:51]}  Qe8 {[%clk 0:02:41]} 12. Ne5 {[%clk 0:00:49]}  Bc6 {[%clk 0:02:06]} 13. Nxc4 {[%clk 0:00:31]}  Nxc4 {[%clk 0:02:06]} 14. Qxc4 {[%clk 0:00:31]}  Qd8 {[%clk 0:01:26]} 15. Bf4 {[%clk 0:00:22]}  Rc8 {[%clk 0:01:23]} 16. d5 {[%clk 0:00:21]}  exd5 {[%clk 0:01:23]} 17. exd5 {[%clk 0:00:21]}  Bd7 {[%clk 0:01:22]} 18. Rac1 {[%clk 0:00:18]}  Bd6 {[%clk 0:01:20]} 19. Nb5 {[%clk 0:00:03]}  Bxf4 {[%clk 0:01:18]} 20. Qxf4 {[%clk 0:00:02]}  Bxb5 {[%clk 0:01:12]} 21. axb5 {[%clk 0:00:03]}  Qd6 {[%clk 0:01:13]} 22. Qd2 {[%clk 0:00:02]}  a4 {[%clk 0:01:02]} 23. Qc3 {[%clk 0:00:02]}  Rfe8 {[%clk 0:00:59]} 0-1


[Site "https://www.chess.com"]